Cogmind - Beta 12 --- EXPLORER MODE // 2024.02.09 @ 06:36:09 Player: Arctrect Result: Destroyed by G-50 Soldier with Heavy Laser Performance ------------- Evolutions (4) 2000 Regions Visited (6) 1200 Robots Destroyed (72) 360 Value Destroyed (2375) 2375 Prototype IDs (2) 40 Alien Tech Used (0) 0 Bonus (500) 500 TOTAL SCORE: 6475 Bonus ------- Entered DSFs 500 Cogmind --------- Core Integrity 0/850 Matter 300/300 Energy 100/100 System Corruption 3% Temperature Cool (9) Movement Core (50) Location -6/Factory Parts ------- > --- POWER (4) -------- (None) > --- PROPULSION (4) --- (None) > --- UTILITY (4) ------ (None) > --- WEAPON (4) ------- (None) > --- INVENTORY (5) ---- Improved VSS Leg Medium Storage Unit Gauss Rifle Peak State ------------ > --- POWER ------------ Fusion Compressor Fusion Compressor > --- PROPULSION ------- Improved Titanium Leg Improved VSS Leg Improved VSS Leg Improved VSS Leg > --- UTILITY ---------- Medium Storage Unit Weight Redist. System Advanced Visual Processing Unit Signal Interpreter > --- WEAPON ----------- Heavy Particle Cannon Assault Rifle Rocket Launcher Maul > --- INVENTORY -------- Improved VSS Leg Medium Storage Unit Gauss Rifle [Rating: 45] Favorites ----------- Power Ion Engine Engine Ion Engine Power Core Fusion Compressor Propulsion Light Treads Treads Light Treads Leg Carbon-fiber Leg Utility Sensor Array Device Sensor Array Storage Medium Storage Unit Processor Signal Interpreter Hackware Hacking Suite Weapon Beam Rifle Energy Gun Beam Rifle Energy Cannon Heavy Particle Cannon Ballistic Gun Assault Rifle Ballistic Cannon Magnetic Acceleration Cannon Launcher Rocket Launcher Impact Weapon Maul Build | -11 -10 -9 -8 -7 -7 -6 ------- Run | Jun Mat Mat Mat Fac DSF Fac Slots Evolved 9 | . 1 2 2 2 . 2 Power 3 | . 1 1 . 1 . . Propulsion 2 | . . . 1 . . 1 Utility 2 | . . 1 1 . . . Weapon 2 | . . . . 1 . 1 Parts Attached 90 | 7 7 36 22 1 2 15 Power 20 | 1 2 8 3 . 2 4 Engine 15 | 1 2 8 3 . . 1 Core 5 | . . . . . 2 3 Reactor . | . . . . . . . Propulsion 24 | 2 2 11 4 . . 5 Treads 16 | 2 2 11 1 . . . Leg 8 | . . . 3 . . 5 Wheel . | . . . . . . . Hover . | . . . . . . . Flight . | . . . . . . . Utility 18 | 2 1 11 4 . . . Device 12 | 2 1 7 2 . . . Storage 3 | . . 2 1 . . . Processor 2 | . . 1 1 . . . Hackware 1 | . . 1 . . . . Protection . | . . . . . . . Artifact . | . . . . . . . Weapon 28 | 2 2 6 11 1 . 6 Energy Gun 10 | 2 2 3 3 . . . Energy Cannon 4 | . . . 2 . . 2 Ballistic Gun 9 | . . 3 3 1 . 2 Ballistic Cannon 1 | . . . . . . 1 Launcher 3 | . . . 2 . . 1 Special Weapon . | . . . . . . . Impact Weapon 1 | . . . 1 . . . Slashing Weapon . | . . . . . . . Piercing Weapon . | . . . . . . . Special Melee Weapon . | . . . . . . . Unidentified Prototypes . | . . . . . . . Parts Lost 29 | . . 1 3 . 2 23 Power 9 | . . . . . 1 8 Propulsion 7 | . . . 1 . . 6 Utility 4 | . . 1 1 . . 2 Weapon 9 | . . . 1 . 1 7 Highest Loss Streak 7 | . . 1 1 . 1 7 To Critical Strikes . | . . . . . . . Average Slot Usage (%) 94 | . 94 97 96 92 91 69 Engine 25 | . 22 29 25 21 15 3 Treads 18 | . 23 19 19 . . . Leg 2 | . . . 4 21 21 15 Device 16 | . 24 17 11 7 7 4 Storage 3 | . . 3 8 7 7 6 Processor 5 | . . 4 9 14 14 11 Hackware 1 | . . 1 . . . . Energy Gun 11 | . 24 10 7 7 7 1 Ballistic Gun 6 | . . 9 3 7 5 2 Naked Turns 1 | . . . . . . 1 Heaviest Build 101 | 9 14 101 45 38 43 55 Greatest Support 71 | 40 40 43 69 51 51 71 Greatest Overweight (x) 5 | 2 3 2 3 . . 5 Average Overweight (x) . | . . . . . . . Largest Inventory Capacity 25 | 5 5 25 10 10 10 10 Average Capacity 9 | 5 5 11 10 10 10 9 Most Carried 11 | 3 5 11 10 6 7 9 Average Carried 5 | 1 2 6 6 6 6 4 Final Capacity 10 | 5 5 10 10 10 10 5 Final Carried 7 | 2 3 7 7 6 6 3 Class Distribution -------------------- 53% | Scavenger-Mutant 44% | Hacker-Mutant Dominant Class ---------------- Hacker-Mutant | -10/Materials Scavenger-Mutant | -9/Materials Scavenger-Mutant | -8/Materials Scavenger-Mutant | -7/Factory Hacker-Mutant | -7/DSF Hacker-Mutant | -6/Factory Resources | -11 -10 -9 -8 -7 -7 -6 ----------- Run | Jun Mat Mat Mat Fac DSF Fac Matter Collected 1703 | 195 145 524 247 . 92 500 Remotely 288 | . . 110 178 . . . Salvage Created 2487 | . 187 1265 402 . 103 530 Parts 130 | . 14 78 23 . 5 10 Haulers Intercepted . | . . . . . . . Recyclers Shooed 1 | . . 1 . . . . Parts Field Recycled . | . . . . . . . Retrieved Matter . | . . . . . . . Parts Self-Destructed . | . . . . . . . Prevented . | . . . . . . . Kills | -11 -10 -9 -8 -7 -7 -6 ------- Run | Jun Mat Mat Mat Fac DSF Fac Combat Hostiles Destroyed 61 | . 6 27 14 . 3 11 Melee 8 | . . . 4 . . 4 Guns 38 | . 6 27 2 . 2 1 Cannons 4 | . . . 2 . . 2 AOE 6 | . . . 6 . . . Classes Destroyed 11 | . 3 4 2 . 1 1 Worker 4 | . 1 2 . . . 1 Builder 2 | . . . 2 . . . Operator 1 | . . 1 . . . . Watcher 4 | . . 4 . . . . Swarmer 16 | . 4 7 2 . . 3 Grunt 26 | . 2 9 9 . 2 4 Brawler 2 | . . 1 . . . 1 Duelist 1 | . . . . . . 1 Sentry 13 | . . 10 2 . . 1 Hunter 2 | . . . 1 . . 1 Heavy 1 | . . . . . 1 . Best Kill Streak 4 | . 3 3 4 . 2 4 Combat Bots Only 4 | . 2 3 3 . 2 4 Max Kills in Single Turn 2 | . 2 2 2 . 1 1 Gunslinging 1 | . . 1 . . . . Exploded 2 | . . . 2 . . . Melee 1 | . . . 1 . . 1 Uniques/NPCs Destroyed . | . . . . . . . Combat | -11 -10 -9 -8 -7 -7 -6 -------- Run | Jun Mat Mat Mat Fac DSF Fac Damage Taken 5225 | . 102 803 971 . 437 2912 Core 1296 | . 4 67 303 . 69 853 Absorbed by Shields . | . . . . . . . Core Remaining (%) 83 | 100 98 83 44 . 90 . Volleys Fired 129 | . 11 72 27 . 9 10 Largest 3 | . 2 2 2 . 2 3 Hottest 203 | . 90 90 138 . 81 203 Shots Fired 245 | . 22 144 40 . 17 22 Gun 211 | . 22 144 24 . 17 4 Cannon 25 | . . . 8 . . 17 Launcher 9 | . . . 8 . . 1 Special . | . . . . . . . Kinetic 82 | . . 57 8 . 8 9 Thermal 124 | . 11 72 20 . 9 12 Explosive 9 | . . . 8 . . 1 Electromagnetic 30 | . 11 15 4 . . . Robot Hit Streak 45 | . 12 45 39 . 39 8 Robot Miss Streak 2 | . 1 2 1 . . 1 Penetration Max . | . . . . . . . Secondary Targets 8 | . 1 5 1 . 1 . Max Gunslinging Chain 1 | . 1 1 1 . 1 . Shots Hit Robots 239 | . 17 118 41 . 20 43 Core Hits 108 | . 10 52 26 . 7 13 Critical Kills 3 | . . . . . . 3 Critical Parts Destroyed 8 | . . . 2 . 2 4 Critical Strikes 19 | . . 6 4 . 2 7 Burn 8 | . . 6 2 . . . Meltdown 1 | . . . . . . 1 Destroy 2 | . . . . . 2 . Smash 8 | . . . 2 . . 6 Melee Attacks 34 | . . . 4 . 3 27 Impact 34 | . . . 4 . 3 27 Slashing . | . . . . . . . Piercing . | . . . . . . . Sneak Attacks 2 | . . . 1 . . 1 Combat Hostiles . | . . . . . . . Follow-up Attacks . | . . . . . . . Damage Inflicted 5648 | . 255 1664 1812 . 406 1511 Guns 2582 | . 244 1631 330 . 334 43 Cannons 514 | . . . 151 . . 363 Explosions 1131 | . . . 1131 . . . Melee 1318 | . . . 169 . 72 1077 Ramming 103 | . 11 33 31 . . 28 Kinetic 1120 | . . 589 98 . 206 227 Thermal 1596 | . 114 868 307 . 128 179 Explosive 1131 | . . . 1131 . . . Electromagnetic 380 | . 130 174 76 . . . Impact 1318 | . . . 169 . 72 1077 Slashing . | . . . . . . . Piercing . | . . . . . . . Highest Corruption 3 | . . . 2 . . 3 Average Corruption 2 | . . . 2 . . 2 Corruption Purged . | . . . . . . . Corruption Blocked . | . . . . . . . Effects 8 | . . . 7 . . 1 Matter Fused 1 | . . . . . . 1 Heat Flow Errors 2 | . . . 2 . . . Energy Discharges 1 | . . . 1 . . . Data Loss (minor) 1 | . . . 1 . . . Data Loss (major) 1 | . . . 1 . . . Alerts 1 | . . . 1 . . . Weapon Failures 1 | . . . 1 . . . Overload Shots . | . . . . . . . Overflow Damage 433 | . . . 151 . 2 280 Projectiles 7 | . . . . . . 7 Explosions 62 | . . . 62 . . . Melee 364 | . . . 89 . 2 273 Knockbacks 11 | . . . 3 . . 8 Impact 7 | . . . 2 . . 5 Kinetic 2 | . . . . . . 2 Secondary 2 | . . . 1 . . 1 Self-Inflicted Damage 36 | . 5 . 20 . . 11 Shots 1 | . . . 1 . . . Rammed 26 | . 1 4 5 . . 16 Targets Rammed 34 | . 1 5 9 . . 19 Kicked 3 | . . . . . . 3 Crushed 5 | . . 1 4 . . . Highest Temperature 457 | . 264 240 454 . 18 457 Average Temperature 119 | . 90 57 154 . 10 204 Received Heat Transfer 2137 | . 63 372 432 . 153 1117 Effects 16 | . . . 7 . . 9 Shutdowns 8 | . . . 2 . . 6 Energy Bleed 2 | . . . . . . 2 Interference 4 | . . . 4 . . . Short Circuit 1 | . . . 1 . . . Damage (minor) 1 | . . . . . . 1 Siege Activations . | . . . . . . . Robots Corrupted . | . . . . . . . Combat Hostiles . | . . . . . . . Parts Fried 13 | . . 2 4 . 1 6 Impact Corruptions 15 | . . . 3 . 1 11 Robots Melted 1 | . . . . . . 1 Combat Hostiles 1 | . . . . . . 1 Parts Melted 5 | . . 2 1 . . 2 Heat Transferred 4514 | . 333 2701 851 . 333 296 Parts Sabotaged 2 | . . . . . . 2 Parts Stolen . | . . . . . . . Parts Stripped . | . . . . . . . Power Chain Reactions . | . . . . . . . Missiles Intercepted . | . . . . . . . Alert | -11 -10 -9 -8 -7 -7 -6 ------- Run | Jun Mat Mat Mat Fac DSF Fac Peak Influence 307 | . 81 220 307 6 60 143 Initial 23 | . . . . 3 2 23 Average 36 | . 26 28 114 4 24 43 Maximum Alert Level 1 | . . 1 1 . . . Low Security (%) 97 | 100 100 98 81 100 100 100 Level 1 2 | . . 1 18 . . . Level 2 . | . . . . . . . Level 3 . | . . . . . . . Level 4 . | . . . . . . . Level 5 . | . . . . . . . High Security . | . . . . . . . Max Security . | . . . . . . . Squads Dispatched 8 | . . 2 1 . 1 4 Investigation 1 | . . 1 . . . . Extermination 1 | . . . . . . 1 Reinforcement 5 | . . 1 1 . 1 2 Assault 1 | . . . . . . 1 Garrison . | . . . . . . . Intercept . | . . . . . . . Searches Triggered . | . . . . . . . Construction Impeded 1 | . . . 1 . . . Haulers Reinforced . | . . . . . . . Active Scanning Responses . | . . . . . . . Cargo Convoy Interrupts . | . . . . . . . Stealth | -11 -10 -9 -8 -7 -7 -6 --------- Run | Jun Mat Mat Mat Fac DSF Fac Distress Signals 2 | . 1 1 . . . . Communications Jammed . | . . . . . . . Distress Signals . | . . . . . . . Times Spotted 119 | . 16 47 22 . 3 31 Peak Tracking Total 8 | . 3 3 6 . 3 8 Tactical Retreats 9 | . . 3 1 . . 5 Traps | -11 -10 -9 -8 -7 -7 -6 ------- Run | Jun Mat Mat Mat Fac DSF Fac Traps Triggered 8 | . 3 5 . . . . Indirectly . | . . . . . . . Trap Hack Attempts . | . . . . . . . Triggered . | . . . . . . . Disarmed . | . . . . . . . Reprogrammed . | . . . . . . . Reused . | . . . . . . . Traps Extracted . | . . . . . . . Installed . | . . . . . . . Triggered 1 | . . . . . . 1 Machines | -11 -10 -9 -8 -7 -7 -6 ---------- Run | Jun Mat Mat Mat Fac DSF Fac Machines Disabled 2 | . . 1 1 . . . Max in Single Turn 1 | . . 1 1 . . . Garrison Access 1 | . . . . . . 1 Machines Repaired . | . . . . . . . Machines Sabotaged . | . . . . . . . Overloaded Fab Kills . | . . . . . . . Hacking | -11 -10 -9 -8 -7 -7 -6 --------- Run | Jun Mat Mat Mat Fac DSF Fac Machines Accessed 22 | . 6 10 5 1 . . Terminals 21 | . 6 9 5 1 . . Fabricators . | . . . . . . . Repair Stations . | . . . . . . . Recycling Units . | . . . . . . . Scanalyzers 1 | . . 1 . . . . Garrison Access . | . . . . . . . Total Hacks 60 | . 16 29 14 1 . . Successful 45 | . 13 21 10 1 . . Failed 15 | . 3 8 4 . . . Catastrophic . | . . . . . . . Database Lockouts . | . . . . . . . Manual . | . . . . . . . Terminals 57 | . 16 26 14 1 . . Fabricators . | . . . . . . . Repair Stations . | . . . . . . . Recycling Units . | . . . . . . . Scanalyzers 3 | . . 3 . . . . Garrison Access . | . . . . . . . Terminal Hacks 43 | . 13 19 10 1 . . Record 15 | . 8 7 . . . . Robot Analysis 1 | . . 1 . . . . Prototype ID Bank 1 | . . 1 . . . . Open DSF 1 | . . . . 1 . . Alert Level 2 | . . 2 . . . . Unreport Threat 3 | . . 3 . . . . Locate Traps 3 | . 2 1 . . . . Dispatch Records 3 | . 1 1 1 . . . Maintenance Status 1 | . . . 1 . . . Transport Status 1 | . . . 1 . . . Investigation Status 1 | . . . 1 . . . Reinforcement Status 1 | . 1 . . . . . Assault Status 2 | . . . 2 . . . Hauler Manifests 4 | . 1 1 2 . . . Registered Components 1 | . . 1 . . . . Zone Layout 3 | . . 1 2 . . . Fabricator Hacks . | . . . . . . . Repair Station Hacks . | . . . . . . . Recycling Unit Hacks . | . . . . . . . Scanalyzer 2 | . . 2 . . . . Insert Component 1 | . . 1 . . . . Analyze 1 | . . 1 . . . . Garrison Access Hacks . | . . . . . . . Unauthorized Hacks . | . . . . . . . Terminals . | . . . . . . . Fabricators . | . . . . . . . Repair Stations . | . . . . . . . Recycling Units . | . . . . . . . Scanalyzers . | . . . . . . . Garrison Access . | . . . . . . . Data Cores Recovered 1 | . . 1 . . . . Used . | . . . . . . . Hacking Detections 16 | . 4 9 3 . . . Full Trace Events 4 | . . 4 . . . . Feedback Events . | . . . . . . . Feedback Blocked . | . . . . . . . Robot Schematics Acquired . | . . . . . . . Robots Built . | . . . . . . . Authchips . | . . . . . . . Time . | . . . . . . . Total Robot Build Rating . | . . . . . . . Part Schematics Acquired 1 | . . 1 . . . . Parts Built . | . . . . . . . Authchips . | . . . . . . . Time . | . . . . . . . Total Part Build Rating . | . . . . . . . Parts Repaired . | . . . . . . . Time . | . . . . . . . Parts Recycled . | . . . . . . . Recycled Matter . | . . . . . . . Retrieved Matter . | . . . . . . . Retrieved Components . | . . . . . . . Parts Scanalyzed 1 | . . 1 . . . . Part Schematics Acquired 1 | . . 1 . . . . Parts Damaged . | . . . . . . . Bothacking | -11 -10 -9 -8 -7 -7 -6 ------------ Run | Jun Mat Mat Mat Fac DSF Fac Used RIF Installer . | . . . . . . . Robots Hacked . | . . . . . . . Non-combat . | . . . . . . . Combat . | . . . . . . . Robot Hacks Applied . | . . . . . . . Relay Couplers Released 4 | . . . . . . 4 Machine Destruction 4 | . . . . . . 4 Fabnet Peak Effective % . | . . . . . . . Robots Rewired . | . . . . . . . Allies Hacked . | . . . . . . . Hacks Repelled . | . . . . . . . Allies | -11 -10 -9 -8 -7 -7 -6 -------- Run | Jun Mat Mat Mat Fac DSF Fac Total Allies . | . . . . . . . Largest Group . | . . . . . . . Highest-Rated Group . | . . . . . . . Highest-Rated Ally . | . . . . . . . Total Orders . | . . . . . . . Ally Attacks . | . . . . . . . Total Damage . | . . . . . . . Kills . | . . . . . . . Allies Corrupted . | . . . . . . . Allies Melted . | . . . . . . . Intel | -11 -10 -9 -8 -7 -7 -6 ------- Run | Jun Mat Mat Mat Fac DSF Fac Robot Analysis Total 1 | . . 1 . . . . Derelict Logs Recovered . | . . . . . . . Drone Launches . | . . . . . . . Drone Recoveries . | . . . . . . . Exploration | -11 -10 -9 -8 -7 -7 -6 ------------- Run | Jun Mat Mat Mat Fac DSF Fac Turns Passed 10430 | 289 1642 6530 911 9 103 946 Spaces Moved 5090 | 197 923 2976 502 7 49 436 Core 203 | 75 57 . 4 . . 67 Treads 4337 | 122 866 2976 373 . . . Legs 550 | . . . 125 7 49 369 Wheels . | . . . . . . . Hover . | . . . . . . . Flight . | . . . . . . . Fastest Speed 50 | 50 50 160 120 120 120 50 Average Speed 176 | 138 161 189 150 120 120 166 Slowest Speed 320 | 160 200 320 200 120 120 300 Overloaded Moves . | . . . . . . . Propulsion Burnouts . | . . . . . . . Robots Hopped . | . . . . . . . Cave-ins Triggered 1 | . . . 1 . . . Exploration Rate (%) 49 | 8 95 98 40 . 49 6 Regions Visited 6 Branch Regions . Pre-discovered Areas . | . . . . . . . Known Exits Taken 5 | 1 1 1 1 1 . . Unknown Exits Taken . | . . . . . . . Scrap Searched . | . . . . . . . Spaces Dug . | . . . . . . . Terrain Destroyed 48 | . . . 39 . . 9 Melee . | . . . . . . . Projectile 1 | . . . . . . 1 AOE 47 | . . . 39 . . 8 Terrain Rammed . | . . . . . . . Walls Destroyed . | . . . . . . . Machines Disabled . | . . . . . . . Actions | -11 -10 -9 -8 -7 -7 -6 --------- Run | Jun Mat Mat Mat Fac DSF Fac Total 6226 | 212 1054 3715 605 7 70 563 Wait 716 | . 105 541 19 . 6 45 Move 5084 | 196 922 2975 501 6 48 436 Hop . | . . . . . . . Pick Up 89 | 9 8 47 12 . 2 11 Fast Attach 4 | . . 4 . . . . Attach 64 | 7 7 19 14 1 2 14 Detach 4 | . . . 4 . . . Swap 22 | . . 13 8 . . 1 Drop 46 | . . 39 7 . . . Fire 129 | . 11 72 27 . 9 10 Melee 34 | . . . 4 . 3 27 Ram 17 | . 1 . . . . 16 Kick 3 | . . . . . . 3 Crush 14 | . . 5 9 . . . Escape Stasis . | . . . . . . . Rewire . | . . . . . . . Trap . | . . . . . . . Miscellaneous . | . . . . . . . Route ------- -11/Junkyard -10/Materials (discovered 5 exits: *Mat x3 / *Min x2) -9/Materials (discovered 4 exits: *Mat x3 / *Min) -8/Materials (discovered 2 exits: *Fac x2) -7/Factory -7/DSF -6/Factory History --------- Turn | Location | Event 24 | -11/Junkyard | Identified exit to Materials 24 | -11/Junkyard | Discovered exit to Materials (range 16) 290 | -11/Junkyard | Entered Materials 290 | -10/Materials | Evolved 1 slot: Power x1 310 | -10/Materials | Build established: Hacker-Mutant 1172 | -10/Materials | Identified exit to Materials 1172 | -10/Materials | Discovered exit to Materials (range 13) 1339 | -10/Materials | Identified exit to Mines 1339 | -10/Materials | Discovered exit to Mines (range 15) 1477 | -10/Materials | Discovered exit to Materials (range 15) 1737 | -10/Materials | Discovered exit to Mines (range 9) 1907 | -10/Materials | Discovered exit to Materials (range 16) 1932 | -10/Materials | Entered another Materials area 1932 | -9/Materials | Evolved 2 slots: Power x1, Utility x1 2446 | -9/Materials | Identified exit to Mines 2446 | -9/Materials | Discovered exit to Mines (range 14) 2649 | -9/Materials | Build established: Scavenger-Mutant 3593 | -9/Materials | Identified exit to Materials 3593 | -9/Materials | Discovered exit to Materials (range 10) 4715 | -9/Materials | Discovered exit to Materials (range 14) 5708 | -9/Materials | Discovered exit to Materials (range 10) 6696 | -9/Materials | Build established: Hacker-Mutant 7980 | -9/Materials | Build established: Scavenger-Mutant 8462 | -9/Materials | Entered another Materials area 8462 | -8/Materials | Evolved 2 slots: Propulsion x1, Utility x1 8893 | -8/Materials | Crushed by falling debris 8922 | -8/Materials | Core integrity fell below 50% 9054 | -8/Materials | Identified exit to Factory 9054 | -8/Materials | Discovered exit to Factory (range 16) 9355 | -8/Materials | Discovered exit to Factory (range 15) 9373 | -8/Materials | Entered Factory 9373 | -7/Factory | Evolved 2 slots: Power x1, Weapon x1 9378 | -7/Factory | Identified exit to DSF 9382 | -7/Factory | Entered DSF 9401 | -7/DSF | Identified exit to Factory 9401 | -7/DSF | Discovered exit to Factory (range 19) 9417 | -7/DSF | Additional patrols routed to DSF 9485 | -7/DSF | Entered Factory 9485 | -6/Factory | Evolved 2 slots: Propulsion x1, Weapon x1 9770 | -6/Factory | Lost 7 parts (4p2n1w) 9837 | -6/Factory | Lost 6 parts (2p2n2w) 10257 | -6/Factory | Lost 6 parts (1p1n1u3w) 10261 | -6/Factory | Build established: Hacker-Mutant 10370 | -6/Factory | Core integrity fell below 50% 10420 | -6/Factory | Core integrity fell below 20% 10431 | -6/Factory | Destroyed by G-50 Soldier with Heavy Laser Last Messages --------------- 10410_ G-67 Veteran unfolds itself. 10410_ G-50 Soldier unfolds itself. 10410_ E-15 Imp unfolds itself. 10411_ Imp. VSS Leg destroyed. 10411_ K-01 Serf collects debris. 10411_ K-01 Serf destroyed. 10411_ K-01 Serf collects debris. 10412_ Acquired 3 matter. 10412_ R-10 Processor collects Wheel. 10412_ K-01 Serf collects debris. 10415_ Adv. Visual Processing Unit blown off. 10415_ Signal Interpreter blown off. 10415_ E-15 Imp destroyed. 10415_ R-10 Processor collects Cesium-ion Thruster. 10415_ K-01 Serf collects debris. 10426_ R-10 Processor collects Welding Torch. 10428_ K-01 Serf collects debris. 10429_ P-60 Hacker resets K-01 Serf, system corruption cleaned. 10429_ K-01 Serf collects debris. 10430_ Med. Storage Unit destroyed. Map ----- +----------------------------------------------------+ | ?????????????????????????????????????????????????? | | ?????????????????????????????????????????????????? | | ?????????????????????????????????????????????????? | | ?????????????????????????????????????????????????? | | ???????????????????????? ??????????????????????? | | ???????????????????????? ??????????????????????? | | ???????????????????????? ??????????????????????? | | ???????????????????????? ??????????????????????? | | ???????????????????????# #?????????????????????? | | ???????????????????????# #?????????????????????? | | ???????????????????????# #?????????????????????? | | ???????????????????????# #?????????????????????? | | ???????????????????????# #?????????????????????? | | ???????????????????????# A #?????????????????????? | | ???????????????????????# #?????????????????????? | | ???????????????????????# #?????????????????????? | | ???????????????????????# #?????????????????????# | | ?????????????????????### %###???????????????????# | | ?????????????????????# ##########+########## | | ###########?????###### ! =%=%= %% !! | | #?????# k ggg k!/k % %= | | #?????+ %k= ! | | #?????# p | | #??????## ## | | #???????# ## l ##########"########## | | #???????# #####@#####??# #??? | | #???????# ## #??# #??? | | # #?# ## #??# #??? | | ##?????## ## #### """ """ #??? | | ######## # ] + + """ """ #??? | | %+ / + ! #### """ """ #??? | | ######## # #??# #### | | #####+ ###########+##] ! #??# """ !! + | | ## #### + #??# """ " !#### | | # #??# # #??# """ " !## | | ####??# ##########??# " ## | | #?????# """ #???????????#! ## | | #?????# """"" #???????????###############! | | #?????# """"" #?????????????????????????# | | #?????# #?????????????????????????# | | ####?????#############?????????????????????????### | | | | | | | | | | | | | | | | | | | +----------------------------------------------------+ Best States ------------- Heat Dissipation 38 Energy Generation 63 Energy Capacity 640 Matter Stores 300 Matter Capacity 300 Sight Range 20 Robot Scan Range 14 Terrain Scan Range 14 Terrain Scan Density 10 Additional Mass Support 6 Resistance: KI 35 Resistance: TH 35 Resistance: EX 35 Resistance: EM 35 Resistance: I 35 Resistance: S 35 Resistance: P 35 Evasion (%) 55 Recoil Reduction 3 Offensive Hacking 30 Item Schematics ----------------- Imp. Treads | -9/Materials | Scanalyzed Robot Schematics ------------------ None Fabricated ------------ Nothing Alien Tech Used ----------------- None Achievements -------------- Use The Force Challenges ------------ None Game ------ Seed WeightHelicalCanceller Manual? 0 Play Time 01:54:13 Cumulative 39.4 hours Start 2024.02.09 @ 04:35:22 End 2024.02.09 @ 06:36:09 Sessions 1 Manual Loads 0 Difficulty Explorer Special Mode None Game No. 44 Rogue 31 Adventurer 0 Explorer 13 Win Type - Total 0 Types 0/0/0/0/0/0/0/0/0 Lore% 19 Gallery% 23 Achievement% 21 Wizard Run 0 Options --------- ASCII 0 Keyboard 0 Movement Arrows Keybinds 0 Fullscreen 1 Font 12/Fuzzy Map View 76x56 Tactical HUD 1 Map Filters NONE Filters NONE Steam 1 RUN: 9a337184-aef6-4707-8726-e7e645b01723